[Event "VIII Open Semana Santa 2024"]
[Site "San Vicente del Raspeig"]
[Date "2024.03.31"]
[Round "8.7"]
[White "Mamedov, Edgar"]
[Black "Levin, Guy"]
[Result "1/2-1/2"]
[ECO "A21"]
[WhiteElo "2317"]
[BlackElo "2452"]
[Annotator "TA"]
[PlyCount "57"]
[EventDate "2024.03.27"]
[EventType "swiss"]
[EventCountry "ESP"]
[SourceTitle "playchess.com"]
[Source "ChessBase"]
[SourceQuality "1"]
[TimeControl "5400+30"]

{[%evp 9,57,27,33,10,8,14,47,28,27,27,23,25,32,8,20,14,87,84,77,64,83,66,72,60,102,51,52,54,60,34,37,40,63,22,15,4,21,19,24,0,12,0,0,5,0,0,2,14,15,12]} 1. c4 {[%emt 0:00:15]} e5 {[%emt 0:00:08]} 2. Nc3 {[%emt 0:00:13]} Bb4 {[%emt 0:00:23]} 3. Nd5 {[%emt 0:00:11]} a5 {[%emt 0:00:08]} 4. a3 {[%emt 0:00:42]} Bc5 {[%emt 0:00:17]} 5. e3 {[%emt 0:00:26]} c6 {[%emt 0:01:07]} 6. Nc3 {[%emt 0:06:19]} d6 {[%emt 0:00:12]} 7. d4 {[%emt 0:00:09]} Ba7 {[%emt 0:00:04]} 8. Nf3 {[%emt 0:00:18] White is slightly better.} Nd7 {[%emt 0:00:05]} 9. Be2 {[%emt 0:02:22]} Ngf6 {[%emt 0:02:24]} 10. b4 {[%emt 0:00:42]} O-O {[%emt 0:00:48]} 11. Bb2 {[%emt 0:00:23]} Re8 {[%emt 0:01:39]} 12. d5 {[%emt 0:06:53]} c5 {[%emt 0:34:30]} (12... Bb8 $11 {remains equal.}) 13. b5 $16 {[%emt 0:06:37]} Bb6 {[%emt 0:02:43]} 14. O-O {[%emt 0:02:52]} Qe7 {[%emt 0:00:58]} 15. Nd2 {[%emt 0:03:34]} Bd8 {[%emt 0:10:36]} 16. Bd3 {[%emt 0:10:46]} Nf8 {[%emt 0:03:31]} 17. Qe2 {[%emt 0:15:38] White is more active.} (17. Qc2 $16) 17... Ng4 $14 {[%emt 0:04:01]} 18. f3 {[%emt 0:02:33]} Nh6 {[%emt 0:01:13]} 19. Qf2 {[%emt 0:05:30]} f5 {[%emt 0:02:18]} 20. Rae1 {[%emt 0:01:44]} Ng6 {[%emt 0:04:10]} 21. Be2 {[%emt 0:04:48]} f4 {[%emt 0:03:14]} 22. Bd3 {[%emt 0:02:00] [#] Threatens to win with Bxg6.} Nf5 {[%emt 0:04:19]} 23. Bxf5 {[%emt 0:01:56]} Bxf5 {[%emt 0:00:24]} 24. Nde4 {[%emt 0:00:29]} a4 {[%emt 0:01:28] The position is equal.} 25. Bc1 {[%emt 0:01:38]} Ba5 {[%emt 0:01:05]} 26. Rd1 {[%emt 0:00:37]} Bxc3 {[%emt 0:01:30]} 27. Nxc3 {[%emt 0:00:04]} fxe3 {[%emt 0:00:45]} 28. Bxe3 {[%emt 0:00:53]} Nf4 {[%emt 0:04:52]} 29. Qd2 {[%emt 0:04:23] Weighted Error Value: White=0.12 (very precise) /Black=0.11 (very precise) .  Mistake:       	White=1     	Black=1      Inaccurate:     	White=2     	Black=2      OK:         	White=7     	Black=11} 1/2-1/2

[Event "VIII Open Semana Santa 2024"]
[Site "San Vicente del Raspeig"]
[Date "2024.03.31"]
[Round "8.8"]
[White "Alexakis, Dimitris"]
[Black "Beydullayeva, Govhar"]
[Result "1-0"]
[ECO "C48"]
[WhiteElo "2448"]
[BlackElo "2374"]
[Annotator "RC"]
[PlyCount "101"]
[EventDate "2024.03.27"]
[EventType "swiss"]
[EventCountry "ESP"]
[SourceTitle "playchess.com"]
[Source "ChessBase"]
[SourceQuality "1"]
[TimeControl "5400+30"]

1. e4 {[%emt 0:06:31]} e5 {[%emt 0:00:22]} 2. Nf3 {[%emt 0:03:54]} Nc6 {[%emt 0:00:09]} 3. Nc3 {[%emt 0:02:42]} Nf6 {[%emt 0:01:05]} 4. Bb5 {[%emt 0:00:06]} Nd4 {[%emt 0:13:21]} 5. O-O {[%emt 0:02:24]} Nxb5 {[%emt 0:06:30]} 6. Nxb5 {[%emt 0:00:07]} a6 {[%emt 0:02:46]} 7. Nc3 {[%emt 0:00:10]} d6 {[%emt 0:00:04]} 8. d4 {[%emt 0:01:02]} exd4 {[%emt 0:01:34]} 9. Nxd4 {[%emt 0:00:40]} Be7 {[%emt 0:02:23]} 10. Qf3 {[%emt 0:00:25]} O-O {[%emt 0:02:43]} 11. h3 {[%emt 0:07:38]} Bd7 {[%emt 0:10:32]} 12. Bf4 {[%emt 0:04:43]} Qc8 {[%emt 0:02:41]} 13. Rfe1 {[%emt 0:04:20]} Re8 {[%emt 0:01:02]} 14. Rad1 {[%emt 0:02:47]} b5 {[%emt 0:04:25]} 15. g4 {[%emt 0:20:42]} b4 {[%emt 0:11:14]} 16. Nce2 {[%emt 0:00:38]} h6 {[%emt 0:03:39]} 17. Nf5 {[%emt 0:06:36]} Bxf5 {[%emt 0:01:43]} 18. exf5 {[%emt 0:03:17]} d5 {[%emt 0:02:53]} 19. Ng3 {[%emt 0:02:27]} c6 {[%emt 0:06:18]} 20. Kg2 {[%emt 0:10:10]} Nh7 {[%emt 0:01:03]} 21. c4 {[%emt 0:04:00]} bxc3 {[%emt 0:01:23]} 22. bxc3 {[%emt 0:00:13]} Bf6 {[%emt 0:03:13]} 23. c4 {[%emt 0:01:04]} Rxe1 {[%emt 0:01:34]} 24. Rxe1 {[%emt 0:00:01]} dxc4 {[%emt 0:02:26]} 25. Ne4 {[%emt 0:00:52]} Qd7 {[%emt 0:02:09]} 26. Rd1 {[%emt 0:01:57]} Qe7 {[%emt 0:00:07]} 27. Nd6 {[%emt 0:02:50]} c3 {[%emt 0:01:40]} 28. Qxc6 {[%emt 0:00:20]} Rd8 {[%emt 0:00:55]} 29. Nc8 {[%emt 0:10:37]} Qe8 {[%emt 0:04:01]} 30. Qxe8+ {[%emt 0:00:11]} Rxe8 {[%emt 0:00:02]} 31. Nd6 {[%emt 0:00:16]} Re2 {[%emt 0:01:33]} 32. Rd5 {[%emt 0:01:48]} Rxa2 {[%emt 0:03:57]} 33. Rc5 {[%emt 0:00:08]} Re2 {[%emt 0:04:57]} 34. Rc8+ {[%emt 0:00:19]} Nf8 {[%emt 0:00:03]} 35. Kf3 {[%emt 0:00:30]} Rb2 {[%emt 0:02:54]} 36. Ne4 {[%emt 0:00:18]} Be7 {[%emt 0:00:03]} 37. Nxc3 {[%emt 0:00:45]} Rb3 {[%emt 0:01:01]} 38. Kg2 {[%emt 0:00:30]} g5 {[%emt 0:00:31]} 39. fxg6 {[%emt 0:01:18]} Kg7 {[%emt 0:00:04]} 40. gxf7 {[%emt 0:00:30]} Ne6 {[%emt 0:00:21]} 41. Be3 {[%emt 0:00:37]} a5 {[%emt 0:00:55]} 42. Nd5 {[%emt 0:00:16]} Bf8 {[%emt 0:00:17]} 43. Ra8 {[%emt 0:00:29]} Rb5 {[%emt 0:00:47]} 44. Nf4 {[%emt 0:00:39]} Nxf4+ {[%emt 0:00:17]} 45. Bxf4 {[%emt 0:00:02]} Kxf7 {[%emt 0:00:41]} 46. Bd2 {[%emt 0:00:31]} Bb4 {[%emt 0:00:29]} 47. Bxh6 {[%emt 0:00:13]} Rd5 {[%emt 0:00:23]} 48. Be3 {[%emt 0:00:27]} Rd1 {[%emt 0:00:35]} 49. h4 {[%emt 0:00:12]} Bc3 {[%emt 0:00:04]} 50. h5 {[%emt 0:00:15]} Ra1 {[%emt 0:00:11]} 51. g5 {[%emt 0:00:08]} 1-0

[Event "VIII Open Semana Santa 2024"]
[Site "San Vicente del Raspeig"]
[Date "2024.03.31"]
[Round "8.10"]
[White "Heimann, Mark"]
[Black "Lazaro Pujol, Abel"]
[Result "1-0"]
[ECO "D38"]
[WhiteElo "2435"]
[BlackElo "2309"]
[Annotator "TA"]
[PlyCount "62"]
[EventDate "2024.03.27"]
[EventType "swiss"]
[EventCountry "ESP"]
[SourceTitle "playchess.com"]
[Source "ChessBase"]
[SourceQuality "1"]
[TimeControl "5400+30"]

{[%evp 10,62,10,13,26,17,22,13,13,10,15,10,12,20,20,14,16,0,0,0,0,6,19,21,24,29,31,11,26,0,197,184,195,187,229,229,230,233,315,311,352,360,317,310,345,343,369,362,362,360,589,568,943,791,755]} 1. d4 {[%emt 0:00:01][%cal Bd2d4,Bd4c5][%mdl 32]} d5 {[%emt 0:00:18]} 2. c4 {[%emt 0:00:09]} e6 {[%emt 0:00:11]} 3. Nf3 {[%emt 0:00:10]} Nf6 {[%emt 0:00:34]} 4. Nc3 {[%emt 0:00:05]} Bb4 {[%emt 0:00:31]} 5. Qb3 {[%emt 0:00:05]} c5 {[%emt 0:00:16]} 6. dxc5 {[%emt 0:00:06]} Nc6 {[%emt 0:00:17]} 7. Bg5 {[%emt 0:00:11]} dxc4 {[%emt 0:02:21]} 8. Qxc4 {[%emt 0:00:14]} Qa5 {[%emt 0:01:05] The position is equal.} 9. Bxf6 {[%emt 0:00:06]} gxf6 {[%emt 0:00:05]} 10. Rc1 {[%emt 0:00:03]} Qxc5 {[%emt 0:00:31]} 11. Qh4 {[%emt 0:00:05]} Ke7 {[%emt 0:00:46]} 12. g3 {[%emt 0:00:05]} Bxc3+ {[%emt 0:01:24]} 13. bxc3 {[%emt 0:03:10]} Bd7 {[%emt 0:05:27]} 14. Bg2 {[%emt 0:01:26]} Rac8 {[%emt 0:01:36]} 15. O-O {[%emt 0:00:17]} h5 {[%emt 0:01:30]} 16. Rfd1 {[%emt 0:02:53]} Rhd8 {[%emt 0:04:50]} 17. Nd2 {[%emt 0:02:07][%cal Bf3d2,Bd2c4,Bc4d6][%mdl 32] Threatens to win with Ne4.} Qg5 {[%emt 0:04:50]} 18. Qa4 {[%emt 0:05:09]} Qa5 {[%emt 0:22:47]} 19. Qb3 {[%emt 0:02:11][%cal Od2c4] Nc4! would now be deadly.} b6 $2 {[%emt 0:03:52] [#]} (19... Ne5 $11) 20. Nc4 $18 {[%emt 0:01:52]} Qc5 {[%emt 0:00:37]} 21. Nd6 $36 {[%emt 0:00:08][%mdl 2048] Inhibits Be8. White is on the roll.} Rc7 {[%emt 0:01:09] Repels Nb7} 22. Ne4 {[%emt 0:00:18]} Qa5 {[%emt 0:01:08]} 23. a4 {[%emt 0:00:14] [#] Qa3+ is the strong threat.} Ne5 {[%emt 0:12:20][%cal Oe5c4]} 24. Qa3+ {[%emt 0:01:26]} Rc5 {[%emt 0:00:07]} 25. Nxc5 {[%emt 0:01:12]} bxc5 {[%emt 0:00:04]} 26. Rd4 {[%emt 0:03:17]} Rc8 {[%emt 0:04:46]} 27. Rb1 {[%emt 0:04:03] Prevents Bb5.} Rc7 {[%emt 0:02:03]} 28. Rh4 {[%emt 0:00:24]} Qa6 {[%emt 0:01:03]} 29. Qa2 {[%emt 0:02:51]} ({Don't play} 29. Rxh5 Qxe2 30. Rh8 Nd3 $18) 29... f5 $2 {[%emt 0:03:58]} (29... Bc6 30. Rxh5 Qxa4 31. Qxa4 Bxa4) 30. Qd2 {[%emt 0:01:26]} Bxa4 {[%emt 0:02:33]} 31. Qf4 {[%emt 0:01:28]} Kd6 {[%emt 0:23:01] Weighted Error Value: White=0.03 (flawless) /Black=0.37.  Loses game:     	---       	Black=1      Mistake:       	---       	Black=1      Inaccurate:     	White=1     	Black=2      OK:         	White=16    	Black=12     Best:        	White=2     	Black=1} 1-0

[Event "VIII Open Semana Santa 2024"]
[Site "San Vicente del Raspeig"]
[Date "2024.03.31"]
[Round "8.11"]
[White "Gormally, Daniel W"]
[Black "Adhiban, B.."]
[Result "1/2-1/2"]
[ECO "E04"]
[WhiteElo "2415"]
[BlackElo "2541"]
[Annotator "TA"]
[PlyCount "77"]
[EventDate "2024.03.27"]
[EventType "swiss"]
[EventCountry "ESP"]
[SourceTitle "playchess.com"]
[Source "ChessBase"]
[SourceQuality "1"]
[TimeControl "5400+30"]

{[%evp 14,77,0,0,-21,-28,0,0,0,0,0,0,0,0,0,0,0,-27,-12,-5,-6,-27,-16,-10,0,-25,0,-10,0,0,0,-50,-55,-50,0,0,0,0,0,0,0,0,49,54,47,44,43,43,50,53,53,53,68,69,112,112,112,112,112,112,112,112,112,112,112,112]} 1. d4 {[%emt 0:00:09]} d5 {[%emt 0:00:05]} 2. c4 {[%emt 0:00:28]} e6 {[%emt 0:00:04]} 3. Nf3 {[%emt 0:00:24]} c6 {[%emt 0:00:15]} 4. g3 {[%emt 0:02:31]} dxc4 {[%emt 0:02:01]} 5. Bg2 {[%emt 0:00:34]} b5 {[%emt 0:01:50]} 6. O-O {[%emt 0:03:48]} Bb7 {[%emt 0:00:13]} 7. Ne5 {[%emt 0:01:21]} Nf6 {[%emt 0:00:20]} 8. Nc3 {[%emt 0:02:28]} a6 {[%emt 0:00:44]} 9. a4 {[%emt 0:00:10]} Be7 {[%emt 0:05:17]} 10. axb5 {[%emt 0:02:27]} axb5 {[%emt 0:00:04] The position is equal.} 11. Rxa8 {[%emt 0:00:05]} Bxa8 {[%emt 0:00:03]} 12. Nxb5 {[%emt 0:01:00]} cxb5 {[%emt 0:00:03]} 13. Bxa8 {[%emt 0:00:04]} O-O {[%emt 0:00:04]} 14. Bg2 {[%emt 0:02:31]} Nd5 {[%emt 0:01:10]} 15. e4 {[%emt 0:04:56]} Nb4 {[%emt 0:00:33]} 16. Be3 {[%emt 0:00:21]} Nd7 {[%emt 0:02:32]} 17. Nf3 {[%emt 0:07:57]} Nf6 {[%emt 0:04:55]} 18. Ne5 {[%emt 0:03:56]} Nd7 {[%emt 0:02:05]} 19. Nf3 {[%emt 0:01:51]} Nf6 {[%emt 0:10:02]} 20. Ne5 {[%emt 0:00:12]} h6 {[%emt 0:14:56]} 21. f4 {[%emt 0:04:00]} Nd7 {[%emt 0:02:20]} 22. h4 {[%emt 0:04:53]} (22. Ng4 $11) 22... Nxe5 $15 {[%emt 0:05:01]} 23. fxe5 {[%emt 0:00:07]} Kh7 {[%emt 0:07:38]} (23... Nd3 $15 24. Qg4 Qd7 (24... Nxb2 25. d5 $15)) 24. d5 $11 {[%emt 0:04:07]} Qb8 {[%emt 0:00:32]} (24... Nd3 $6 25. d6 $16) 25. Qh5 {[%emt 0:02:01] [#] d6 is the strong threat.} Nc2 {[%emt 0:09:37]} 26. Bc1 {[%emt 0:04:25]} (26. Rxf7 $2 {loses.} Rxf7 27. Qxf7 Nxe3 $19) ({Don't play} 26. Bxh6 g6 27. Qe2 Bc5+ (27... Kxh6 28. d6 $11) 28. Kh2 Kxh6 $17) 26... Bc5+ {[%emt 0:02:20]} 27. Kh2 {[%emt 0:00:05][%cal Oc1h6]} Ne3 {[%emt 0:12:09]} (27... Qe8 $1 $11) 28. Bxe3 $14 {[%emt 0:03:45]} Bxe3 {[%emt 0:00:03]} 29. Rxf7 {[%emt 0:00:17]} Rxf7 {[%emt 0:00:28]} 30. Qxf7 {[%emt 0:00:06]} Qxe5 {[%emt 0:00:10]} 31. dxe6 {[%emt 0:01:30][%mdl 4096] Endgame. KQB-KQB} Bc5 {[%emt 0:01:05][%cal Oc5d6] Dodges e7} 32. Qf5+ {[%emt 0:04:19]} Qxf5 {[%emt 0:00:05]} 33. exf5 {[%emt 0:00:03] KB-KB} Kg8 {[%emt 0:01:08]} 34. Bc6 {[%emt 0:01:36] White is better.} Kf8 {[%emt 0:00:08]} 35. Bxb5 {[%emt 0:01:12]} Bd4 {[%emt 0:00:05]} 36. Bxc4 {[%emt 0:00:35] Black must now prevent b4.} Bxb2 {[%emt 0:00:04]} 37. Kh3 {[%emt 0:01:56]} Bc3 {[%emt 0:00:12]} 38. Kg4 {[%emt 0:00:16]} Be1 {[%emt 0:00:05]} 39. Kf4 {[%emt 0:37:34] Weighted Error Value: White=0.04 (flawless) /Black=0.10 (very precise) .  Mistake:       	White=1     	Black=2      Inaccurate:     	White=1     	Black=2      OK:         	White=17    	Black=15     Best:        	White=4     	Black=2} 1/2-1/2

[Event "VIII Open Semana Santa 2024"]
[Site "San Vicente del Raspeig"]
[Date "2024.03.31"]
[Round "8.12"]
[White "Bora, Safal"]
[Black "Habans Aguerrea, Javier"]
[Result "1/2-1/2"]
[ECO "E06"]
[WhiteElo "2490"]
[BlackElo "2399"]
[Annotator "TA"]
[PlyCount "95"]
[EventDate "2024.03.27"]
[EventType "swiss"]
[EventCountry "ESP"]
[SourceTitle "playchess.com"]
[Source "ChessBase"]
[SourceQuality "1"]
[TimeControl "5400+30"]

{[%evp 12,95,25,5,24,3,19,8,33,27,25,21,26,6,6,0,0,0,0,0,8,0,0,0,10,0,7,2,2,8,1,2,7,0,19,16,13,15,21,27,17,17,29,11,45,48,52,49,50,49,56,16,15,0,0,0,0,0,0,0,0,0,0,0,0,0,0,0,0,0,0,0,0,0,0,0,0,0,0,0,0,0,0,0,0,0]} 1. d4 {[%emt 0:03:24]} Nf6 {[%emt 0:00:12]} 2. c4 {[%emt 0:00:07]} e6 {[%emt 0:00:11]} 3. g3 {[%emt 0:00:12]} d5 {[%emt 0:00:19]} 4. Bg2 {[%emt 0:00:06]} Be7 {[%emt 0:00:15]} 5. Nf3 {[%emt 0:00:11][%cal Bg1f3,Bf3e5,Be5c4][%mdl 32]} O-O {[%emt 0:00:08]} 6. O-O {[%emt 0:00:14]} c6 {[%emt 0:00:37]} 7. Nc3 {[%emt 0:00:49]} a5 {[%emt 0:00:43]} 8. Ne5 {[%emt 0:06:17]} Nbd7 {[%emt 0:14:00]} 9. Bf4 {[%emt 0:15:12]} dxc4 {[%emt 0:07:09]} 10. Nxc4 {[%emt 0:00:41]} Nd5 {[%emt 0:00:15]} 11. Rc1 {[%emt 0:05:49][%cal Ba1c1,Bc1c6,Bc6d6][%mdl 32]} b6 {[%emt 0:05:35]} 12. Nxd5 {[%emt 0:18:00]} cxd5 {[%emt 0:01:18]} 13. Ne5 {[%emt 0:05:05]} Nxe5 {[%emt 0:00:20]} 14. Bxe5 {[%emt 0:00:05]} Ba6 {[%emt 0:02:41]} 15. Qd2 {[%emt 0:08:06]} Bd6 {[%emt 0:16:33]} 16. Rc6 {[%emt 0:00:48]} Bxe5 {[%emt 0:00:12]} 17. dxe5 {[%emt 0:00:05]} Rc8 {[%emt 0:01:08]} 18. Rfc1 {[%emt 0:06:29]} Qd7 {[%emt 0:14:28]} 19. Rd6 {[%emt 0:02:35]} Rxc1+ {[%emt 0:04:09]} 20. Qxc1 {[%emt 0:00:02]} Qa4 {[%emt 0:00:08]} 21. Bf3 {[%emt 0:00:59]} Qd4 {[%emt 0:03:42]} 22. Qe3 {[%emt 0:03:57]} Qxe3 {[%emt 0:00:05]} 23. fxe3 $11 {[%emt 0:00:03][%mdl 4096] Endgame. KRB-KRB} Rb8 {[%emt 0:00:07]} 24. Kf2 {[%emt 0:00:29]} Kf8 {[%emt 0:00:27]} 25. e4 {[%emt 0:00:39]} dxe4 {[%emt 0:00:05]} 26. Bxe4 {[%emt 0:00:03]} Ke7 {[%emt 0:00:33]} 27. Ke3 {[%emt 0:01:25]} f6 {[%emt 0:01:07]} 28. Bxh7 {[%emt 0:02:13]} fxe5 {[%emt 0:06:18]} 29. Rc6 {[%emt 0:00:16]} Rh8 {[%emt 0:08:24]} 30. Rxb6 {[%emt 0:12:31]} Bc4 {[%emt 0:00:20]} 31. b3 {[%emt 0:00:55]} Bd5 {[%emt 0:00:13] Repels Rb7+. The position is equal.} 32. Be4 {[%emt 0:01:35]} Rxh2 {[%emt 0:01:15]} 33. Bxd5 {[%emt 0:00:11]} exd5 {[%emt 0:00:01] KR-KR} 34. Ra6 {[%emt 0:00:50]} d4+ {[%emt 0:01:21]} 35. Kd3 {[%emt 0:01:25]} Rg2 {[%emt 0:00:31]} 36. Rxa5 {[%emt 0:00:22]} Rxg3+ {[%emt 0:00:02]} 37. Kd2 {[%emt 0:00:09]} Kd6 {[%emt 0:00:19]} 38. b4 {[%emt 0:02:03]} e4 {[%emt 0:01:50]} 39. b5 {[%emt 0:00:17]} Kc5 {[%emt 0:03:01]} 40. b6+ {[%emt 0:01:04]} Kxb6 {[%emt 0:00:02]} 41. Rd5 {[%emt 0:00:06]} d3 {[%emt 0:00:19]} 42. exd3 {[%emt 0:00:05]} Rxd3+ {[%emt 0:00:08]} 43. Rxd3 {[%emt 0:00:03]} exd3 {[%emt 0:00:06]} 44. Kxd3 {[%emt 0:00:03] KP-KP} Ka5 {[%emt 0:00:08]} 45. Ke4 {[%emt 0:00:03]} Ka4 {[%emt 0:00:04]} 46. Kf5 {[%emt 0:00:03]} Ka3 {[%emt 0:00:04]} 47. Kg6 {[%emt 0:00:02]} Kxa2 {[%emt 0:00:05]} 48. Kxg7 {[%emt 0:00:02] Weighted Error Value: White=0.06 (flawless) /Black=0.04 (flawless) .  Inaccurate:     	White=1     	Black=1      OK:         	White=20    	Black=23} 1/2-1/2

[Event "VIII Open Semana Santa 2024"]
[Site "San Vicente del Raspeig"]
[Date "2024.03.31"]
[Round "8.13"]
[White "Suarez Uriel, Adrian"]
[Black "Xiao, Tong(Qd)"]
[Result "0-1"]
[ECO "B42"]
[WhiteElo "2407"]
[BlackElo "2484"]
[Annotator "TA"]
[PlyCount "106"]
[EventDate "2024.03.27"]
[EventType "swiss"]
[EventCountry "ESP"]
[SourceTitle "playchess.com"]
[Source "ChessBase"]
[SourceQuality "1"]
[TimeControl "5400+30"]

{[%evp 14,106,32,40,34,4,42,-22,0,-12,-18,-19,0,-29,0,-15,-19,-26,0,-42,-32,-65,-60,-67,-29,-83,-82,-196,-185,-174,-175,-183,-175,-179,-189,-231,-184,-212,-195,-200,-191,-203,-204,-196,-164,-187,-189,-207,-201,-196,-202,-212,-207,-218,-218,-207,-212,-231,-206,-216,-221,-209,-161,-164,-169,-164,-161,-162,-170,-187,-173,-266,-258,-333,-314,-326,-335,-290,-238,-225,-217,-231,-239,-250,-190,-243,-236,-236,-236,-300,-275,-29978,-29979,-29998,-29999]} 1. e4 {[%emt 0:08:40]} c5 {[%emt 0:00:03]} 2. Ne2 {[%emt 0:00:06]} e6 {[%emt 0:00:15]} 3. d4 {[%emt 0:00:05]} cxd4 {[%emt 0:00:04]} 4. Nxd4 {[%emt 0:00:04]} a6 {[%emt 0:00:03]} 5. Bd3 {[%emt 0:00:12]} Bc5 {[%emt 0:00:05]} 6. Nb3 {[%emt 0:00:06]} Ba7 {[%emt 0:00:04]} 7. Qg4 {[%emt 0:00:04]} Nf6 {[%emt 0:00:05]} 8. Qg3 {[%emt 0:09:02]} d6 {[%emt 0:00:08] B42: Sicilian: Kan Variation: 5 Bd3.} 9. Be3 {[%emt 0:01:50]} Nc6 {[%emt 0:00:15]} 10. N1d2 {[%emt 0:00:26]} (10. Qxg7 Rg8 11. Qh6 Rg6 $15) ({Better is} 10. Bxa7 $14 Rxa7 11. Qxg7) 10... O-O {[%emt 0:03:11]} 11. O-O {[%emt 0:03:04]} Bxe3 {[%emt 0:02:01]} 12. Qxe3 {[%emt 0:00:15]} e5 {[%emt 0:00:13]} 13. c4 $146 {[%emt 0:07:47]} ({Predecessor:} 13. a4 d5 14. c3 dxe4 15. Bxe4 Nxe4 16. Nxe4 f5 17. Rfd1 Qe7 18. Nd6 f4 19. Nxc8 Raxc8 {1-0 Hansen,E (2615)-Tisevich,R (2337) Titled Tuesday intern op 4th Dec blitz 2018 (7)}) 13... a5 {[%emt 0:01:44]} 14. Rac1 {[%emt 0:02:16]} a4 {[%emt 0:01:33]} 15. Na1 {[%emt 0:00:05]} Be6 {[%emt 0:00:58]} 16. h3 {[%emt 0:05:10]} Nd7 {[%emt 0:03:05]} 17. Nb1 {[%emt 0:09:31]} Nb4 {[%emt 0:07:26]} 18. Nc3 {[%emt 0:00:17]} Qb6 {[%emt 0:00:21]} (18... Nb6 $5 19. b3 Nxa2 20. Nxa2 axb3 21. Nxb3 Rxa2 $17) 19. Rfe1 {[%emt 0:10:17]} (19. Qd2 $11) 19... Rfc8 {[%emt 0:02:38]} 20. b3 {[%emt 0:00:41]} (20. Nc2 $17 {was called for.} Nxd3 (20... Bxc4 $2 {too greedy.} 21. Qxb6 Nxb6 22. Nxb4 $18) 21. Qxd3) 20... Qxe3 $19 {[%emt 0:01:50]} 21. Rxe3 {[%emt 0:00:06] [#]} Nxa2 $1 {[%emt 0:00:19]} 22. Nxa2 {[%emt 0:00:21]} axb3 {[%emt 0:00:04]} 23. Nxb3 {[%emt 0:00:12]} Rxa2 {[%emt 1:15:35]} 24. Bf1 {[%emt 0:00:26]} Kf8 {[%emt 0:00:00]} 25. Rec3 {[%emt 0:03:01]} Ke7 {[%emt 0:00:00]} 26. f3 {[%emt 0:00:46]} Rb2 {[%emt 0:00:00]} 27. R1c2 {[%emt 0:06:21]} Rxc2 {[%emt 0:00:00]} 28. Rxc2 {[%emt 0:00:02]} Ra8 {[%emt 0:00:00]} 29. Rb2 {[%emt 0:01:06]} Kd8 {[%emt 0:00:00]} 30. Nd2 {[%emt 0:01:57]} Kc7 {[%emt 0:00:00]} 31. Kf2 {[%emt 0:01:23]} Ra1 {[%emt 0:00:00]} 32. h4 {[%emt 0:02:52]} h5 {[%emt 0:00:00]} 33. g3 {[%emt 0:00:47]} Nc5 {[%emt 0:00:00]} 34. Be2 {[%emt 0:01:35]} Rc1 {[%emt 0:00:00]} 35. Rb4 {[%emt 0:06:08]} g6 {[%emt 0:00:00]} 36. Nf1 {[%emt 0:00:17]} Rc2 {[%emt 0:00:00]} 37. Ke1 {[%emt 0:00:01]} f5 {[%emt 0:00:00]} 38. exf5 {[%emt 0:00:20]} gxf5 {[%emt 0:00:00]} 39. Ne3 {[%emt 0:00:10]} Rc3 {[%emt 0:00:00]} 40. Kd2 {[%emt 0:01:44]} Ra3 {[%emt 0:00:00]} 41. Nc2 {[%emt 0:01:14]} Ra8 {[%emt 0:00:00]} 42. Ke3 {[%emt 0:01:05]} (42. Ke1 $142) 42... Ra2 $19 {[%emt 0:00:00]} 43. Kd2 {[%emt 0:01:58]} f4 {[%emt 0:00:00]} 44. gxf4 {[%emt 0:00:09]} Bf5 {[%emt 0:00:00]} ({Don't do} 44... exf4 45. Kc1 $19) 45. Bd1 {[%emt 0:00:01]} exf4 {[%emt 0:00:00]} ({Weaker is} 45... Na6 46. Rb5 $17) 46. Rb5 {[%emt 0:08:45]} b6 {[%emt 0:00:00]} 47. Rb1 {[%emt 0:01:15]} Bd3 {[%emt 0:00:00]} 48. Rb4 {[%emt 0:00:50]} Kb7 {[%emt 0:00:00]} 49. Kc3 {[%emt 0:01:55]} (49. Kc1 {was worth a try.}) 49... Bxc2 $19 {[%emt 0:00:00]} 50. Bxc2 {[%emt 0:00:04]} Ra3+ {[%emt 0:00:00]} 51. Kd4 {[%emt 0:00:09]} Rxf3 {[%emt 0:00:00] Threatens to win with ...Re3.} 52. Kd5 $2 {[%emt 0:01:24]} (52. Be4+ $19 Nxe4 53. Kxe4) 52... Rf2 {[%emt 0:00:00]} 53. Bg6 {[%emt 0:00:06]} Rd2+ {[%emt 0:00:00]} 0-1